[Event "Titled Tuesday Blitz August 3 2021"]
[White "Kim, Sergey"]
[Black "Petriashvili, Nikoloz"]
[WhiteFideId "13700570"]
[BlackFideId "13611216"]
[WhiteElo "2580"]
[BlackElo "2430"]
[Result "0-1"]
[Round "03"]
[TimeControl "180+1"]
[Date "2021.08.03"]
[WhiteClock "0:00:02"]
[BlackClock "0:00:03"]

1. d4 {[%clk 0:03:00]}  Nf6 {[%clk 0:02:59]} 2. c4 {[%clk 0:03:00]}  g6 {[%clk 0:03:00]} 3. Nc3 {[%clk 0:03:00]}  d5 {[%clk 0:03:00]} 4. cxd5 {[%clk 0:03:00]}  Nxd5 {[%clk 0:03:01]} 5. e4 {[%clk 0:03:00]}  Nxc3 {[%clk 0:03:02]} 6. bxc3 {[%clk 0:03:01]}  Bg7 {[%clk 0:03:02]} 7. Bc4 {[%clk 0:03:01]}  c5 {[%clk 0:03:02]} 8. Ne2 {[%clk 0:03:01]}  O-O {[%clk 0:03:01]} 9. O-O {[%clk 0:03:00]}  Nc6 {[%clk 0:03:02]} 10. Be3 {[%clk 0:03:00]}  e6 {[%clk 0:03:02]} 11. Qd2 {[%clk 0:02:59]}  Qa5 {[%clk 0:03:01]} 12. Qb2 {[%clk 0:02:53]}  b6 {[%clk 0:02:55]} 13. Rfd1 {[%clk 0:02:50]}  Bb7 {[%clk 0:02:50]} 14. d5 {[%clk 0:02:30]}  Ne5 {[%clk 0:02:48]} 15. Bb3 {[%clk 0:02:25]}  c4 {[%clk 0:02:45]} 16. Bc2 {[%clk 0:02:22]}  exd5 {[%clk 0:02:46]} 17. exd5 {[%clk 0:02:16]}  Bxd5 {[%clk 0:02:46]} 18. Nd4 {[%clk 0:02:05]}  Rad8 {[%clk 0:02:41]} 19. h3 {[%clk 0:02:05]}  Rfe8 {[%clk 0:02:34]} 20. a4 {[%clk 0:02:02]}  Nc6 {[%clk 0:02:20]} 21. Nb5 {[%clk 0:01:58]}  Be6 {[%clk 0:01:48]} 22. Be4 {[%clk 0:01:47]}  Ne7 {[%clk 0:01:30]} 23. Bd4 {[%clk 0:01:35]}  Bxd4 {[%clk 0:01:07]} 24. Rxd4 {[%clk 0:01:31]}  Rxd4 {[%clk 0:01:07]} 25. Nxd4 {[%clk 0:01:30]}  Bd5 {[%clk 0:00:53]} 26. Bc2 {[%clk 0:01:18]}  Nc6 {[%clk 0:00:43]} 27. Nb5 {[%clk 0:01:17]}  Re7 {[%clk 0:00:25]} 28. Qa3 {[%clk 0:01:14]}  a6 {[%clk 0:00:21]} 29. Nd4 {[%clk 0:01:12]}  Qc5 {[%clk 0:00:12]} 30. Qxc5 {[%clk 0:01:05]}  bxc5 {[%clk 0:00:13]} 31. Nxc6 {[%clk 0:01:02]}  Bxc6 {[%clk 0:00:14]} 32. a5 {[%clk 0:01:03]}  Re2 {[%clk 0:00:13]} 33. Ba4 {[%clk 0:01:02]}  Be4 {[%clk 0:00:09]} 34. Bd1 {[%clk 0:00:54]}  Rb2 {[%clk 0:00:08]} 35. f3 {[%clk 0:00:41]}  Bd3 {[%clk 0:00:05]} 36. Ba4 {[%clk 0:00:38]}  Kf8 {[%clk 0:00:03]} 37. Bc6 {[%clk 0:00:34]}  Ke7 {[%clk 0:00:03]} 38. Bd5 {[%clk 0:00:29]}  f6 {[%clk 0:00:03]} 39. h4 {[%clk 0:00:27]}  Kd6 {[%clk 0:00:04]} 40. Bg8 {[%clk 0:00:25]}  Rb3 {[%clk 0:00:04]} 41. Rc1 {[%clk 0:00:20]}  h6 {[%clk 0:00:04]} 42. g4 {[%clk 0:00:19]}  g5 {[%clk 0:00:04]} 43. h5 {[%clk 0:00:18]}  Ra3 {[%clk 0:00:04]} 44. Kf2 {[%clk 0:00:15]}  Rxa5 {[%clk 0:00:04]} 45. Re1 {[%clk 0:00:16]}  Ra2+ {[%clk 0:00:04]} 46. Kg3 {[%clk 0:00:15]}  Re2 {[%clk 0:00:03]} 47. Ra1 {[%clk 0:00:14]}  Rc2 {[%clk 0:00:02]} 48. Rxa6+ {[%clk 0:00:13]}  Ke7 {[%clk 0:00:03]} 49. Ra7+ {[%clk 0:00:13]}  Kf8 {[%clk 0:00:03]} 50. Be6 {[%clk 0:00:12]}  Rxc3 {[%clk 0:00:03]} 51. Rf7+ {[%clk 0:00:11]}  Ke8 {[%clk 0:00:04]} 52. Rxf6 {[%clk 0:00:11]}  Rc1 {[%clk 0:00:04]} 53. Bg8 {[%clk 0:00:08]}  c3 {[%clk 0:00:03]} 54. Bb3 {[%clk 0:00:04]}  c4 {[%clk 0:00:03]} 55. Ba4+ {[%clk 0:00:04]}  Ke7 {[%clk 0:00:03]} 56. Rc6 {[%clk 0:00:04]}  Ra1 {[%clk 0:00:03]} 57. Rc7+ {[%clk 0:00:04]}  Kd6 {[%clk 0:00:03]} 58. Rd7+ {[%clk 0:00:03]}  Ke6 {[%clk 0:00:03]} 59. Rc7 {[%clk 0:00:02]}  Rxa4 {[%clk 0:00:03]} 0-1


[Site "https://www.chess.com"]

[Event "Titled Tuesday Blitz August 3 2021"]
[White "Krzywda, Andrzej"]
[Black "Nazaretyan, Tigran"]
[WhiteFideId "1114565"]
[BlackFideId "24162345"]
[WhiteElo "2100"]
[BlackElo "2214"]
[Result "0-1"]
[Round "03"]
[TimeControl "180+1"]
[Date "2021.08.03"]
[WhiteClock "0:00:03"]
[BlackClock "0:00:39"]

1. e4 {[%clk 0:02:59]}  c5 {[%clk 0:02:59]} 2. Nc3 {[%clk 0:03:00]}  Nc6 {[%clk 0:02:58]} 3. Bb5 {[%clk 0:03:01]}  Nd4 {[%clk 0:02:58]} 4. Nf3 {[%clk 0:03:01]}  a6 {[%clk 0:02:56]} 5. Bd3 {[%clk 0:03:02]}  Nc6 {[%clk 0:02:56]} 6. O-O {[%clk 0:02:48]}  d6 {[%clk 0:02:56]} 7. a3 {[%clk 0:02:47]}  g6 {[%clk 0:02:52]} 8. b4 {[%clk 0:02:41]}  Bg7 {[%clk 0:02:52]} 9. Bb2 {[%clk 0:02:39]}  Nf6 {[%clk 0:02:51]} 10. bxc5 {[%clk 0:02:39]}  dxc5 {[%clk 0:02:51]} 11. Re1 {[%clk 0:02:36]}  O-O {[%clk 0:02:44]} 12. e5 {[%clk 0:02:35]}  Ng4 {[%clk 0:02:40]} 13. Na4 {[%clk 0:02:06]}  c4 {[%clk 0:02:35]} 14. Bf1 {[%clk 0:02:07]}  Qa5 {[%clk 0:02:29]} 15. h3 {[%clk 0:01:54]}  Nxf2 {[%clk 0:01:55]} 16. Kxf2 {[%clk 0:01:54]}  Qxa4 {[%clk 0:01:55]} 17. Kg1 {[%clk 0:01:47]}  b5 {[%clk 0:01:52]} 18. Ng5 {[%clk 0:01:30]}  Bf5 {[%clk 0:01:45]} 19. Rc1 {[%clk 0:01:25]}  Rad8 {[%clk 0:01:42]} 20. Qf3 {[%clk 0:01:17]}  Nd4 {[%clk 0:01:41]} 21. Qf2 {[%clk 0:01:05]}  Nxc2 {[%clk 0:01:35]} 22. Red1 {[%clk 0:01:04]}  h6 {[%clk 0:01:17]} 23. g4 {[%clk 0:00:54]}  Bd3 {[%clk 0:01:11]} 24. Nf3 {[%clk 0:00:41]}  Nxa3 {[%clk 0:01:06]} 25. Ra1 {[%clk 0:00:36]}  b4 {[%clk 0:01:06]} 26. Qb6 {[%clk 0:00:22]}  Qb5 {[%clk 0:01:03]} 27. Qa7 {[%clk 0:00:20]}  Rd7 {[%clk 0:01:02]} 28. Qe3 {[%clk 0:00:17]}  Nc2 {[%clk 0:01:01]} 29. Qf4 {[%clk 0:00:16]}  Nxa1 {[%clk 0:01:01]} 30. Rxa1 {[%clk 0:00:17]}  g5 {[%clk 0:00:51]} 31. Qe3 {[%clk 0:00:16]}  Bxf1 {[%clk 0:00:45]} 32. Rxf1 {[%clk 0:00:17]}  e6 {[%clk 0:00:45]} 33. Rf2 {[%clk 0:00:14]}  c3 {[%clk 0:00:45]} 34. dxc3 {[%clk 0:00:13]}  Rd3 {[%clk 0:00:45]} 35. Qe4 {[%clk 0:00:12]}  bxc3 {[%clk 0:00:45]} 36. Bc1 {[%clk 0:00:13]}  Rd1+ {[%clk 0:00:45]} 37. Kg2 {[%clk 0:00:12]}  Rxc1 {[%clk 0:00:45]} 38. Qe3 {[%clk 0:00:08]}  Qb1 {[%clk 0:00:42]} 39. Nd4 {[%clk 0:00:06]}  Rg1+ {[%clk 0:00:41]} 40. Kf3 {[%clk 0:00:07]}  f5 {[%clk 0:00:39]} 41. Nxe6 {[%clk 0:00:05]}  fxg4+ {[%clk 0:00:39]} 42. Ke2 {[%clk 0:00:03]}  Qd1# {[%clk 0:00:39]} 0-1


[Site "https://www.chess.com"]

[Event "Titled Tuesday Blitz August 3 2021"]
[White "Labussiere, Victor"]
[Black "Timmermans, Mark"]
[WhiteFideId "2183129"]
[BlackFideId "1026399"]
[WhiteElo "1921"]
[BlackElo "2460"]
[Result "1/2-1/2"]
[Round "03"]
[TimeControl "180+1"]
[Date "2021.08.03"]
[WhiteClock "0:00:05"]
[BlackClock "0:00:15"]

1. e4 {[%clk 0:03:00]}  e5 {[%clk 0:02:59]} 2. Bc4 {[%clk 0:03:00]}  Nf6 {[%clk 0:02:59]} 3. d3 {[%clk 0:02:59]}  c6 {[%clk 0:02:59]} 4. Nf3 {[%clk 0:02:58]}  d5 {[%clk 0:02:54]} 5. Bb3 {[%clk 0:02:59]}  Bd6 {[%clk 0:02:54]} 6. Nc3 {[%clk 0:02:56]}  Be6 {[%clk 0:02:52]} 7. O-O {[%clk 0:02:42]}  O-O {[%clk 0:02:52]} 8. Bg5 {[%clk 0:02:34]}  d4 {[%clk 0:02:51]} 9. Ne2 {[%clk 0:02:30]}  Nbd7 {[%clk 0:02:50]} 10. a3 {[%clk 0:02:13]}  Bxb3 {[%clk 0:02:48]} 11. cxb3 {[%clk 0:02:14]}  Re8 {[%clk 0:02:43]} 12. Ng3 {[%clk 0:02:12]}  h6 {[%clk 0:02:35]} 13. Bd2 {[%clk 0:01:52]}  Nf8 {[%clk 0:02:28]} 14. Nf5 {[%clk 0:01:51]}  Ng6 {[%clk 0:02:28]} 15. Kh1 {[%clk 0:01:41]}  Bf8 {[%clk 0:02:17]} 16. Rg1 {[%clk 0:01:37]}  Ng4 {[%clk 0:01:10]} 17. Qf1 {[%clk 0:01:17]}  Ne7 {[%clk 0:00:59]} 18. Ng3 {[%clk 0:01:05]}  g6 {[%clk 0:00:52]} 19. h3 {[%clk 0:01:04]}  Nf6 {[%clk 0:00:52]} 20. Nxe5 {[%clk 0:01:03]}  Nf5 {[%clk 0:00:50]} 21. Nf3 {[%clk 0:00:45]}  Nxg3+ {[%clk 0:00:48]} 22. fxg3 {[%clk 0:00:46]}  Nh5 {[%clk 0:00:47]} 23. Qf2 {[%clk 0:00:41]}  Bd6 {[%clk 0:00:47]} 24. e5 {[%clk 0:00:35]}  Rxe5 {[%clk 0:00:48]} 25. Nxe5 {[%clk 0:00:34]}  Bxe5 {[%clk 0:00:49]} 26. Bf4 {[%clk 0:00:34]}  Qf6 {[%clk 0:00:43]} 27. Rgf1 {[%clk 0:00:32]}  Bxf4 {[%clk 0:00:43]} 28. gxf4 {[%clk 0:00:33]}  Qd6 {[%clk 0:00:44]} 29. Rae1 {[%clk 0:00:30]}  a5 {[%clk 0:00:41]} 30. Kg1 {[%clk 0:00:30]}  a4 {[%clk 0:00:41]} 31. g4 {[%clk 0:00:28]}  Nf6 {[%clk 0:00:39]} 32. Re5 {[%clk 0:00:28]}  axb3 {[%clk 0:00:36]} 33. Rfe1 {[%clk 0:00:28]}  Kg7 {[%clk 0:00:28]} 34. Re7 {[%clk 0:00:27]}  b6 {[%clk 0:00:27]} 35. Qf3 {[%clk 0:00:17]}  Nd5 {[%clk 0:00:24]} 36. R7e4 {[%clk 0:00:15]}  Ne3 {[%clk 0:00:21]} 37. R1xe3 {[%clk 0:00:14]}  dxe3 {[%clk 0:00:21]} 38. Qxe3 {[%clk 0:00:15]}  c5 {[%clk 0:00:20]} 39. d4 {[%clk 0:00:15]}  Rd8 {[%clk 0:00:20]} 40. Kg2 {[%clk 0:00:10]}  cxd4 {[%clk 0:00:20]} 41. Qd3 {[%clk 0:00:09]}  Qd5 {[%clk 0:00:20]} 42. Kf2 {[%clk 0:00:09]}  Qc5 {[%clk 0:00:18]} 43. Re2 {[%clk 0:00:09]}  Qd6 {[%clk 0:00:17]} 44. Kg3 {[%clk 0:00:09]}  Qd5 {[%clk 0:00:17]} 45. Re4 {[%clk 0:00:08]}  h5 {[%clk 0:00:17]} 46. f5 {[%clk 0:00:06]}  hxg4 {[%clk 0:00:13]} 47. hxg4 {[%clk 0:00:06]}  Qd6+ {[%clk 0:00:13]} 48. Kg2 {[%clk 0:00:03]}  Rh8 {[%clk 0:00:14]} 49. Qg3 {[%clk 0:00:03]}  Qxg3+ {[%clk 0:00:13]} 50. Kxg3 {[%clk 0:00:04]}  Rd8 {[%clk 0:00:13]} 51. Re2 {[%clk 0:00:05]}  gxf5 {[%clk 0:00:13]} 52. gxf5 {[%clk 0:00:05]}  Kf6 {[%clk 0:00:14]} 53. Kf4 {[%clk 0:00:05]}  d3 {[%clk 0:00:14]} 54. Rd2 {[%clk 0:00:06]}  Rd5 {[%clk 0:00:14]} 55. Ke4 {[%clk 0:00:06]}  Re5+ {[%clk 0:00:14]} 56. Kf3 {[%clk 0:00:03]}  Rxf5+ {[%clk 0:00:14]} 57. Ke4 {[%clk 0:00:04]}  Re5+ {[%clk 0:00:15]} 58. Kd4 {[%clk 0:00:04]}  Re2 {[%clk 0:00:15]} 59. Rxd3 {[%clk 0:00:03]}  Rxb2 {[%clk 0:00:16]} 60. Rf3+ {[%clk 0:00:03]}  Kg6 {[%clk 0:00:16]} 61. Kc3 {[%clk 0:00:04]}  Rb1 {[%clk 0:00:16]} 62. Rg3+ {[%clk 0:00:04]}  Kf6 {[%clk 0:00:15]} 63. Rf3+ {[%clk 0:00:03]}  Ke6 {[%clk 0:00:16]} 64. Re3+ {[%clk 0:00:04]}  Kd6 {[%clk 0:00:17]} 65. Rf3 {[%clk 0:00:04]}  Ke7 {[%clk 0:00:17]} 66. Re3+ {[%clk 0:00:05]}  Kf8 {[%clk 0:00:18]} 67. Rf3 {[%clk 0:00:05]}  b5 {[%clk 0:00:16]} 68. Re3 {[%clk 0:00:04]}  f6 {[%clk 0:00:15]} 69. Rf3 {[%clk 0:00:04]}  Kf7 {[%clk 0:00:16]} 70. Rf2 {[%clk 0:00:03]}  Rh1 {[%clk 0:00:10]} 71. Kxb3 {[%clk 0:00:03]}  Rh4 {[%clk 0:00:11]} 72. Rf5 {[%clk 0:00:02]}  Rh3+ {[%clk 0:00:11]} 73. Kb4 {[%clk 0:00:02]}  Ke6 {[%clk 0:00:10]} 74. Rxb5 {[%clk 0:00:02]}  f5 {[%clk 0:00:11]} 75. Rb6+ {[%clk 0:00:02]}  Ke5 {[%clk 0:00:11]} 76. Rb8 {[%clk 0:00:03]}  Rh1 {[%clk 0:00:11]} 77. Re8+ {[%clk 0:00:03]}  Kf4 {[%clk 0:00:12]} 78. a4 {[%clk 0:00:04]}  Rb1+ {[%clk 0:00:12]} 79. Kc5 {[%clk 0:00:04]}  Kg4 {[%clk 0:00:12]} 80. a5 {[%clk 0:00:04]}  f4 {[%clk 0:00:13]} 81. Rg8+ {[%clk 0:00:04]}  Kh3 {[%clk 0:00:12]} 82. Rf8 {[%clk 0:00:05]}  Kg3 {[%clk 0:00:12]} 83. a6 {[%clk 0:00:05]}  Ra1 {[%clk 0:00:13]} 84. Kb6 {[%clk 0:00:06]}  Rb1+ {[%clk 0:00:13]} 85. Kc7 {[%clk 0:00:06]}  f3 {[%clk 0:00:14]} 86. a7 {[%clk 0:00:05]}  Rc1+ {[%clk 0:00:14]} 87. Kb7 {[%clk 0:00:05]}  Rb1+ {[%clk 0:00:15]} 88. Kc7 {[%clk 0:00:06]}  Ra1 {[%clk 0:00:16]} 89. Kb7 {[%clk 0:00:06]}  f2 {[%clk 0:00:16]} 90. Rxf2 {[%clk 0:00:05]}  Rxa7+ {[%clk 0:00:15]} 91. Kxa7 {[%clk 0:00:05]}  Kxf2 {[%clk 0:00:15]} 1/2-1/2


[Site "https://www.chess.com"]

[Event "Titled Tuesday Blitz August 3 2021"]
[White "Li, Eric"]
[Black "Goncalves, Ivan Mesquita V"]
[WhiteFideId "30939941"]
[BlackFideId "2114224"]
[WhiteElo "1961"]
[BlackElo "2299"]
[Result "0-1"]
[Round "03"]
[TimeControl "180+1"]
[Date "2021.08.03"]
[WhiteClock "0:00:14"]
[BlackClock "0:00:13"]

1. d4 {[%clk 0:02:59]}  d5 {[%clk 0:02:58]} 2. c4 {[%clk 0:02:58]}  e6 {[%clk 0:02:56]} 3. Nc3 {[%clk 0:02:57]}  a6 {[%clk 0:02:55]} 4. cxd5 {[%clk 0:02:56]}  exd5 {[%clk 0:02:55]} 5. Bf4 {[%clk 0:02:56]}  c6 {[%clk 0:02:55]} 6. e3 {[%clk 0:02:55]}  Bd6 {[%clk 0:02:55]} 7. Bxd6 {[%clk 0:02:54]}  Qxd6 {[%clk 0:02:56]} 8. Bd3 {[%clk 0:02:54]}  Ne7 {[%clk 0:02:55]} 9. Nge2 {[%clk 0:02:53]}  Bf5 {[%clk 0:02:55]} 10. O-O {[%clk 0:02:53]}  Bxd3 {[%clk 0:02:54]} 11. Qxd3 {[%clk 0:02:54]}  O-O {[%clk 0:02:54]} 12. a3 {[%clk 0:02:53]}  Nd7 {[%clk 0:02:52]} 13. Rfc1 {[%clk 0:02:46]}  b5 {[%clk 0:02:50]} 14. Rc2 {[%clk 0:02:44]}  a5 {[%clk 0:02:49]} 15. Rac1 {[%clk 0:02:43]}  a4 {[%clk 0:02:47]} 16. Na2 {[%clk 0:02:41]}  Nb6 {[%clk 0:02:46]} 17. Nb4 {[%clk 0:02:41]}  Nc4 {[%clk 0:02:46]} 18. Ng3 {[%clk 0:02:39]}  g6 {[%clk 0:02:38]} 19. e4 {[%clk 0:02:25]}  Rad8 {[%clk 0:02:28]} 20. e5 {[%clk 0:02:18]}  Qe6 {[%clk 0:02:24]} 21. Na6 {[%clk 0:02:17]}  Nc8 {[%clk 0:02:04]} 22. Nc5 {[%clk 0:02:10]}  Qe7 {[%clk 0:02:05]} 23. f4 {[%clk 0:02:07]}  f5 {[%clk 0:02:01]} 24. b3 {[%clk 0:01:48]}  axb3 {[%clk 0:02:01]} 25. Qxb3 {[%clk 0:01:48]}  N8b6 {[%clk 0:02:01]} 26. a4 {[%clk 0:01:47]}  Nxa4 {[%clk 0:01:49]} 27. Nxa4 {[%clk 0:01:35]}  bxa4 {[%clk 0:01:49]} 28. Qxa4 {[%clk 0:01:36]}  c5 {[%clk 0:01:46]} 29. Rxc4 {[%clk 0:01:28]}  dxc4 {[%clk 0:01:45]} 30. Qxc4+ {[%clk 0:01:28]}  Qf7 {[%clk 0:01:40]} 31. e6 {[%clk 0:01:19]}  Qe7 {[%clk 0:01:40]} 32. d5 {[%clk 0:01:18]}  Rd6 {[%clk 0:01:30]} 33. Ne2 {[%clk 0:01:16]}  Rfd8 {[%clk 0:01:23]} 34. Nc3 {[%clk 0:01:16]}  Kg7 {[%clk 0:00:59]} 35. Rb1 {[%clk 0:01:09]}  Kh6 {[%clk 0:00:55]} 36. Qxc5 {[%clk 0:01:03]}  Rxe6 {[%clk 0:00:52]} 37. Qd4 {[%clk 0:00:54]}  Re1+ {[%clk 0:00:51]} 38. Kf2 {[%clk 0:00:52]}  Rxd5 {[%clk 0:00:32]} 39. Rxe1 {[%clk 0:00:30]}  Qxe1+ {[%clk 0:00:31]} 40. Kxe1 {[%clk 0:00:30]}  Rxd4 {[%clk 0:00:32]} 41. Ne2 {[%clk 0:00:30]}  Ra4 {[%clk 0:00:32]} 42. Kf2 {[%clk 0:00:31]}  Kg7 {[%clk 0:00:32]} 43. g3 {[%clk 0:00:30]}  h6 {[%clk 0:00:33]} 44. Ke3 {[%clk 0:00:26]}  Kf6 {[%clk 0:00:32]} 45. Nc3 {[%clk 0:00:24]}  Ra3 {[%clk 0:00:31]} 46. Kd2 {[%clk 0:00:23]}  g5 {[%clk 0:00:31]} 47. Ne2 {[%clk 0:00:23]}  Kg6 {[%clk 0:00:29]} 48. Ke1 {[%clk 0:00:22]}  Kh5 {[%clk 0:00:28]} 49. Kf2 {[%clk 0:00:21]}  Ra2 {[%clk 0:00:25]} 50. Kf3 {[%clk 0:00:19]}  Rb2 {[%clk 0:00:22]} 51. h3 {[%clk 0:00:18]}  Kg6 {[%clk 0:00:18]} 52. g4 {[%clk 0:00:15]}  Rb3+ {[%clk 0:00:19]} 53. Kg2 {[%clk 0:00:15]}  fxg4 {[%clk 0:00:18]} 54. hxg4 {[%clk 0:00:15]}  gxf4 {[%clk 0:00:19]} 55. Nxf4+ {[%clk 0:00:16]}  Kg5 {[%clk 0:00:18]} 56. Nd5 {[%clk 0:00:16]}  Kxg4 {[%clk 0:00:17]} 57. Nf6+ {[%clk 0:00:16]}  Kh4 {[%clk 0:00:17]} 58. Ne4 {[%clk 0:00:16]}  h5 {[%clk 0:00:16]} 59. Nf2 {[%clk 0:00:16]}  Rb2 {[%clk 0:00:16]} 60. Kf3 {[%clk 0:00:16]}  Rb8 {[%clk 0:00:16]} 61. Kg2 {[%clk 0:00:16]}  Rg8+ {[%clk 0:00:16]} 62. Kh2 {[%clk 0:00:16]}  Rb8 {[%clk 0:00:16]} 63. Kg2 {[%clk 0:00:16]}  Rb2 {[%clk 0:00:17]} 64. Kf3 {[%clk 0:00:16]}  Kg5 {[%clk 0:00:17]} 65. Kg3 {[%clk 0:00:16]}  h4+ {[%clk 0:00:17]} 66. Kf3 {[%clk 0:00:17]}  Kh5 {[%clk 0:00:17]} 67. Nh3 {[%clk 0:00:17]}  Rb3+ {[%clk 0:00:17]} 68. Kg2 {[%clk 0:00:17]}  Kg4 {[%clk 0:00:16]} 69. Nf2+ {[%clk 0:00:18]}  Kf5 {[%clk 0:00:17]} 70. Kh2 {[%clk 0:00:17]}  Rb2 {[%clk 0:00:17]} 71. Kg1 {[%clk 0:00:14]}  Ra2 {[%clk 0:00:16]} 72. Kg2 {[%clk 0:00:15]}  Kf4 {[%clk 0:00:16]} 73. Kg1 {[%clk 0:00:13]}  Kg3 {[%clk 0:00:15]} 74. Ne4+ {[%clk 0:00:14]}  Kf4 {[%clk 0:00:14]} 75. Nf2 {[%clk 0:00:14]}  Kf3 {[%clk 0:00:14]} 76. Nd3 {[%clk 0:00:14]}  Kg3 {[%clk 0:00:12]} 77. Nc5 {[%clk 0:00:14]}  Ra1# {[%clk 0:00:13]} 0-1


[Site "https://www.chess.com"]

[Event "Titled Tuesday Blitz August 3 2021"]
[White "Lintchevski, Daniil"]
[Black "Assaubayeva, Bibisara"]
[WhiteFideId "4171055"]
[BlackFideId "13708694"]
[WhiteElo "2505"]
[BlackElo "2232"]
[Result "0-1"]
[Round "03"]
[TimeControl "180+1"]
[Date "2021.08.03"]
[WhiteClock "0:00:52"]
[BlackClock "0:01:01"]

1. e4 {[%clk 0:03:00]}  c5 {[%clk 0:02:59]} 2. c3 {[%clk 0:03:00]}  Nf6 {[%clk 0:02:57]} 3. e5 {[%clk 0:03:00]}  Nd5 {[%clk 0:02:58]} 4. d4 {[%clk 0:03:01]}  cxd4 {[%clk 0:02:59]} 5. cxd4 {[%clk 0:03:02]}  d6 {[%clk 0:02:59]} 6. Bc4 {[%clk 0:03:02]}  e6 {[%clk 0:02:58]} 7. Nf3 {[%clk 0:03:01]}  Nc6 {[%clk 0:02:58]} 8. O-O {[%clk 0:03:01]}  Be7 {[%clk 0:02:58]} 9. Qe1 {[%clk 0:03:01]}  O-O {[%clk 0:02:57]} 10. Qe4 {[%clk 0:03:01]}  dxe5 {[%clk 0:02:55]} 11. dxe5 {[%clk 0:03:02]}  b6 {[%clk 0:02:50]} 12. Bd3 {[%clk 0:02:54]}  g6 {[%clk 0:02:49]} 13. Bh6 {[%clk 0:02:54]}  Re8 {[%clk 0:02:48]} 14. Nbd2 {[%clk 0:02:45]}  Bb7 {[%clk 0:02:47]} 15. Qg4 {[%clk 0:02:40]}  Ne3 {[%clk 0:02:41]} 16. fxe3 {[%clk 0:02:27]}  Qxd3 {[%clk 0:02:41]} 17. Ne4 {[%clk 0:02:28]}  Nxe5 {[%clk 0:02:21]} 18. Nxe5 {[%clk 0:02:28]}  Qxe4 {[%clk 0:02:21]} 19. Qxe4 {[%clk 0:02:28]}  Bxe4 {[%clk 0:02:21]} 20. Rxf7 {[%clk 0:02:28]}  Bf8 {[%clk 0:02:20]} 21. Bxf8 {[%clk 0:02:11]}  Rxf8 {[%clk 0:02:20]} 22. Raf1 {[%clk 0:02:11]}  Rxf7 {[%clk 0:01:59]} 23. Rxf7 {[%clk 0:02:12]}  Rc8 {[%clk 0:01:59]} 24. Rf4 {[%clk 0:01:41]}  Rc1+ {[%clk 0:01:55]} 25. Kf2 {[%clk 0:01:41]}  Rc2+ {[%clk 0:01:55]} 26. Kg3 {[%clk 0:01:41]}  Rxg2+ {[%clk 0:01:51]} 27. Kh3 {[%clk 0:01:41]}  Bd5 {[%clk 0:01:43]} 28. e4 {[%clk 0:01:37]}  Re2 {[%clk 0:01:43]} 29. Ng4 {[%clk 0:01:29]}  Bxa2 {[%clk 0:01:40]} 30. b4 {[%clk 0:01:14]}  a5 {[%clk 0:01:37]} 31. bxa5 {[%clk 0:01:13]}  bxa5 {[%clk 0:01:38]} 32. e5 {[%clk 0:01:14]}  Kg7 {[%clk 0:01:32]} 33. Ra4 {[%clk 0:01:10]}  h5 {[%clk 0:01:25]} 34. Nf6 {[%clk 0:01:10]}  Rxe5 {[%clk 0:01:24]} 35. Ne8+ {[%clk 0:01:10]}  Kf8 {[%clk 0:01:23]} 36. Nf6 {[%clk 0:01:06]}  Bb3 {[%clk 0:01:17]} 37. Ra3 {[%clk 0:01:06]}  Re3+ {[%clk 0:01:16]} 38. Kh4 {[%clk 0:01:05]}  a4 {[%clk 0:01:11]} 39. Nd7+ {[%clk 0:01:05]}  Ke7 {[%clk 0:01:09]} 40. Nc5 {[%clk 0:01:04]}  Rc3 {[%clk 0:01:08]} 41. Nxa4 {[%clk 0:00:55]}  Rc4+ {[%clk 0:01:08]} 42. Kg5 {[%clk 0:00:55]}  Rg4+ {[%clk 0:01:08]} 43. Kh6 {[%clk 0:00:55]}  Bxa4 {[%clk 0:01:08]} 44. h3 {[%clk 0:00:56]}  Rc4 {[%clk 0:01:04]} 45. Kxg6 {[%clk 0:00:56]}  h4 {[%clk 0:01:04]} 46. Kg5 {[%clk 0:00:56]}  e5 {[%clk 0:01:03]} 47. Kf5 {[%clk 0:00:56]}  Kd6 {[%clk 0:01:03]} 48. Ra2 {[%clk 0:00:53]}  Bd7+ {[%clk 0:01:01]} 49. Kg5 {[%clk 0:00:52]}  Bxh3 {[%clk 0:01:01]} 0-1


[Site "https://www.chess.com"]

[Event "Titled Tuesday Blitz August 3 2021"]
[White "Madaminov, Mukhiddin"]
[Black "Shailesh, Dravid"]
[WhiteFideId "14210703"]
[BlackFideId "25017969"]
[WhiteElo "1747"]
[BlackElo "2228"]
[Result "1-0"]
[Round "03"]
[TimeControl "180+1"]
[Date "2021.08.03"]
[WhiteClock "0:00:07"]
[BlackClock "0:00:07"]

1. e4 {[%clk 0:03:00]}  Nc6 {[%clk 0:02:58]} 2. Nf3 {[%clk 0:02:59]}  d6 {[%clk 0:02:58]} 3. d4 {[%clk 0:02:59]}  Nf6 {[%clk 0:02:58]} 4. Nc3 {[%clk 0:02:57]}  g6 {[%clk 0:02:59]} 5. Be2 {[%clk 0:02:51]}  Bg7 {[%clk 0:02:59]} 6. O-O {[%clk 0:02:50]}  Bg4 {[%clk 0:02:58]} 7. d5 {[%clk 0:02:49]}  Nb8 {[%clk 0:02:57]} 8. Nd4 {[%clk 0:02:40]}  Bxe2 {[%clk 0:02:56]} 9. Qxe2 {[%clk 0:02:41]}  O-O {[%clk 0:02:55]} 10. Rd1 {[%clk 0:02:41]}  Qc8 {[%clk 0:02:33]} 11. f3 {[%clk 0:02:38]}  c5 {[%clk 0:02:32]} 12. Nb3 {[%clk 0:02:34]}  a6 {[%clk 0:02:26]} 13. a4 {[%clk 0:02:34]}  e6 {[%clk 0:02:25]} 14. dxe6 {[%clk 0:02:33]}  Qxe6 {[%clk 0:02:25]} 15. Bf4 {[%clk 0:02:33]}  Ne8 {[%clk 0:02:04]} 16. Qd2 {[%clk 0:02:23]}  Nc6 {[%clk 0:02:03]} 17. Bh6 {[%clk 0:02:22]}  Bxh6 {[%clk 0:01:58]} 18. Qxh6 {[%clk 0:02:22]}  Nf6 {[%clk 0:01:58]} 19. Nd5 {[%clk 0:02:17]}  Rad8 {[%clk 0:01:54]} 20. Qf4 {[%clk 0:02:13]}  Nh5 {[%clk 0:01:52]} 21. Qh4 {[%clk 0:02:03]}  f5 {[%clk 0:01:47]} 22. Re1 {[%clk 0:01:49]}  fxe4 {[%clk 0:01:45]} 23. Qxe4 {[%clk 0:01:50]}  Qxe4 {[%clk 0:01:38]} 24. Rxe4 {[%clk 0:01:51]}  Nf6 {[%clk 0:01:34]} 25. Nxf6+ {[%clk 0:01:49]}  Rxf6 {[%clk 0:01:34]} 26. Rd1 {[%clk 0:01:50]}  d5 {[%clk 0:01:33]} 27. Re2 {[%clk 0:01:46]}  b6 {[%clk 0:01:29]} 28. c3 {[%clk 0:01:46]}  a5 {[%clk 0:01:22]} 29. Red2 {[%clk 0:01:43]}  Rfd6 {[%clk 0:01:21]} 30. Na1 {[%clk 0:01:39]}  Ne5 {[%clk 0:01:21]} 31. b3 {[%clk 0:01:36]}  Kf7 {[%clk 0:01:19]} 32. Nc2 {[%clk 0:01:36]}  c4 {[%clk 0:01:18]} 33. b4 {[%clk 0:01:22]}  Nd3 {[%clk 0:01:16]} 34. Ne3 {[%clk 0:01:02]}  axb4 {[%clk 0:01:15]} 35. cxb4 {[%clk 0:01:02]}  Ra8 {[%clk 0:01:05]} 36. Ra1 {[%clk 0:01:02]}  b5 {[%clk 0:00:52]} 37. a5 {[%clk 0:01:00]}  d4 {[%clk 0:00:52]} 38. Nc2 {[%clk 0:00:58]}  Nf4 {[%clk 0:00:37]} 39. g3 {[%clk 0:00:54]}  Ne6 {[%clk 0:00:37]} 40. Na3 {[%clk 0:00:52]}  Rd5 {[%clk 0:00:33]} 41. Re1 {[%clk 0:00:46]}  d3 {[%clk 0:00:32]} 42. Nb1 {[%clk 0:00:46]}  Nd4 {[%clk 0:00:30]} 43. Kg2 {[%clk 0:00:46]}  Nc2 {[%clk 0:00:30]} 44. Re4 {[%clk 0:00:43]}  Nxb4 {[%clk 0:00:30]} 45. Nc3 {[%clk 0:00:44]}  Rf5 {[%clk 0:00:29]} 46. Rb2 {[%clk 0:00:38]}  Nd5 {[%clk 0:00:25]} 47. Nxb5 {[%clk 0:00:35]}  c3 {[%clk 0:00:24]} 48. Nd6+ {[%clk 0:00:16]}  Kf8 {[%clk 0:00:24]} 49. Rb5 {[%clk 0:00:14]}  c2 {[%clk 0:00:19]} 50. Nxf5 {[%clk 0:00:12]}  c1=Q {[%clk 0:00:18]} 51. Rxd5 {[%clk 0:00:12]}  d2 {[%clk 0:00:15]} 52. Ne3 {[%clk 0:00:12]}  Qb2 {[%clk 0:00:11]} 53. Kh3 {[%clk 0:00:10]}  Ra6 {[%clk 0:00:08]} 54. Red4 {[%clk 0:00:09]}  Qc3 {[%clk 0:00:08]} 55. Rd3 {[%clk 0:00:08]}  Qb4 {[%clk 0:00:07]} 56. Rxd2 {[%clk 0:00:08]}  Rxa5 {[%clk 0:00:07]} 57. Rxa5 {[%clk 0:00:07]}  Kg7 {[%clk 0:00:08]} 58. Rad5 {[%clk 0:00:06]}  Qb8 {[%clk 0:00:07]} 59. R2d3 {[%clk 0:00:06]}  Kh6 {[%clk 0:00:07]} 60. Kg2 {[%clk 0:00:07]}  Qc8 {[%clk 0:00:08]} 61. Ng4+ {[%clk 0:00:07]}  Kg7 {[%clk 0:00:07]} 62. Rd7+ {[%clk 0:00:07]} 1-0


[Site "https://www.chess.com"]